bitfinex/quotes_SOLUSD_20240906
["timestamp","ask_amount","ask_price","bid_price","bid_amount"]
[1725613373150,20.0,128.69,128.66,52.7722]
[1725613373444,7.7714,128.68,128.66,45.0]
[1725613373754,27.7708,128.69,128.65,52.7729]
[1725613374075,27.7708,128.69,128.66,5.70737697]
[1725613374251,27.7708,128.69,128.65,52.7729]
[1725613374454,27.7708,128.69,128.66,5.70737697]
[1725613374648,27.7708,128.69,128.65,52.7729]
[1725613374867,27.7708,128.69,128.66,5.70741634]
[1725613375056,27.7708,128.69,128.65,52.7729]
[1725613375259,27.7708,128.69,128.66,5.70741634]
[1725613375458,27.7708,128.69,128.65,52.7729]
[1725613375660,27.7708,128.69,128.66,5.7074173]
[1725613375877,27.7708,128.69,128.65,52.7729]
[1725613376078,27.7708,128.69,128.66,5.7074173]
[1725613376379,27.7708,128.69,128.65,52.7729]
[1725613376681,27.7708,128.69,128.66,5.7074173]
[1725613376857,27.7708,128.69,128.65,52.7729]
[1725613377059,27.7708,128.69,128.66,5.70741634]
[1725613377258,27.7708,128.69,128.65,52.7729]
[1725613377459,27.7708,128.69,128.66,5.70755771]
[1725613377668,27.7708,128.69,128.65,52.7729]
[1725613377869,27.7708,128.69,128.66,5.70755771]
[1725613378061,27.7708,128.69,128.67,5.70755771]
[1725613378258,27.7708,128.69,128.65,52.7729]
[1725613378463,27.7708,128.69,128.66,5.7074173]
[1725613378664,27.7708,128.69,128.67,5.7074173]
[1725613378865,27.7708,128.69,128.65,52.7729]
[1725613379065,27.7708,128.69,128.66,5.70740116]
[1725613379267,7.7712,128.68,128.67,5.70740116]
[1725613379458,27.7712,128.68,128.67,5.70740212]
[1725613381682,7.7722,128.67,128.63,12.54039303]
[1725613381858,27.7722,128.67,128.64,5.70824736]
[1725613382059,27.7722,128.67,128.65,5.70824736]
[1725613382273,27.7722,128.67,128.66,5.70824736]
[1725613382975,27.7722,128.67,128.63,7.7739]
[1725613383187,27.7722,128.67,128.66,5.70843721]
[1725613383370,27.7722,128.67,128.63,7.7739]
[1725613383888,27.7722,128.67,128.64,5.70843785]
[1725613384060,27.7722,128.67,128.65,5.70843785]
[1725613384383,27.7722,128.67,128.63,7.7739]
[1725613384599,27.7722,128.67,128.64,5.70843785]
[1725613384789,27.7722,128.67,128.65,5.70843785]
[1725613384967,27.7722,128.67,128.63,7.7739]
[1725613385166,27.7722,128.67,128.64,5.70839559]
[1725613385367,27.7722,128.67,128.65,5.70839559]
[1725613385568,27.7722,128.67,128.63,7.7739]
[1725613385780,7.7724,128.66,128.64,5.70839304]
[1725613385983,7.7724,128.66,128.65,5.70839304]
[1725613386189,27.7724,128.66,128.63,7.7739]
[1725613386499,27.7724,128.66,128.64,5.70843243]
[1725613386806,27.7724,128.66,128.65,5.70843243]
[1725613388371,27.7724,128.66,128.63,7.7739]
[1725613388583,27.7724,128.66,128.64,5.70913173]
[1725613388778,27.7724,128.66,128.63,7.7739]
[1725613388980,27.7724,128.66,128.64,5.70913077]
[1725613389188,27.7724,128.66,128.63,7.7739]
[1725613389491,7.7709,128.69,128.65,7.7724]
[1725613389670,7.7709,128.69,128.66,45.0]
[1725613389671,20.0,128.68,128.66,45.0]
[1725613392884,27.7713,128.68,128.65,27.2049]
[1725613393392,27.7713,128.68,128.65,19.4325]
[1725613395702,27.7713,128.68,128.66,5.70803601]
[1725613395872,27.7713,128.68,128.65,19.4325]
[1725613399386,27.7713,128.68,128.66,5.70804973]
[1725613399695,27.7713,128.68,128.65,19.4325]
[1725613399996,27.7713,128.68,128.66,5.70800844]
[1725613400207,27.7713,128.68,128.65,27.2055]
[1725613400208,20.0,128.68,128.65,27.2055]
[1725613400372,20.0,128.68,128.67,7.7718]
[1725613400700,20.0,128.68,128.67,52.7718]
[1725613400865,20.0,128.68,128.67,58.47940787]
[1725613403498,7.7695,128.71,128.68,7.7711]
[1725613404975,20.0,128.7,128.68,7.7711]
[1725613408697,20.0,128.7,128.67,52.7714]
[1725613409471,20.0,128.7,128.66,19.4297]
[1725613409691,7.7718,128.67,128.64,27.2071]
[1725613409885,7.7718,128.67,128.65,5.70854599]
[1725613410091,20.0,128.66,128.64,19.4338]
[1725613410298,20.0,128.66,128.65,5.70879414]
[1725613410603,20.0,128.66,128.63,7.7739]
[1725613410898,20.0,128.66,128.64,5.70902634]
[1725613411104,20.0,128.66,128.63,7.7739]
[1725613411281,20.0,128.66,128.64,50.70902538]
[1725613411480,20.0,128.66,128.64,45.0]
[1725613412705,20.0,128.66,128.65,5.70886174]
[1725613413707,20.0,128.66,128.64,45.0]
[1725613414920,20.0,128.66,128.64,52.7733]
[1725613415132,3.04209247,128.69,128.64,52.7733]
[1725613415341,20.0,128.7,128.64,52.7733]
[1725613415524,40.8096,128.71,128.65,7.773]
[1725613415726,40.8096,128.71,128.64,45.0]
[1725613415727,7.7708,128.69,128.66,45.0]
[1725613416105,7.7701,128.7,128.66,52.7723]
[1725613416500,7.7701,128.7,128.67,5.70800078]
[1725613416824,7.7701,128.7,128.66,52.7723]
[1725613417140,20.0,128.69,128.67,5.70742954]
[1725613417327,20.0,128.69,128.66,52.7723]
[1725613417515,20.0,128.69,128.67,5.70743145]
[1725613417718,7.7696,128.71,128.67,7.7716]
[1725613417932,7.7696,128.71,128.68,50.70742858]
[1725613418235,7.7696,128.71,128.68,45.0]
[1725613419210,20.0,128.7,128.68,45.0]
[1725613419530,20.0,128.7,128.68,72.199]
[1725613419732,20.0,128.71,128.68,72.199]
[1725613422533,20.0,128.71,128.69,7.7705]
[1725613422710,20.0,128.72,128.7,45.0]
[1725613422913,20.0,128.72,128.7,72.1945]
[1725613423117,20.0,128.73,128.7,72.1945]
[1725613426037,27.7682,128.73,128.7,72.1945]
[1725613426647,20.0,128.73,128.71,7.7692]
[1725613427933,27.7685,128.73,128.7,19.4249]
[1725613428320,20.0,128.73,128.7,27.1944]
[1725613429221,20.0,128.73,128.71,45.0]
[1725613430319,27.7683,128.73,128.7,27.1944]
[1725613431443,7.7689,128.72,128.69,7.7703]
[1725613431642,27.7695,128.71,128.68,27.1987]
[1725613431823,7.7695,128.71,128.68,27.1987]
[1725613435435,7.7701,128.7,128.67,7.7716]
[1725613436622,20.0,128.69,128.63,6.2898]
[1725613436854,19.422,128.72,128.64,5.70800612]
[1725613437024,20.0,128.71,128.66,7.772]
[1725613437523,27.7698,128.71,128.66,27.203]
[1725613437739,7.7698,128.71,128.66,27.203]
[1725613437939,20.0,128.7,128.67,13.47901525]
[1725613438222,20.0,128.7,128.68,45.0]
[1725613438422,20.0,128.7,128.68,52.7711]
[1725613438643,20.0,128.71,128.68,52.7711]
[1725613440530,20.0,128.71,128.68,72.199]
[1725613440749,7.7668,128.76,128.7,14.79063008]
[1725613440953,7.7667,128.76,128.72,7.7686]
[1725613441255,7.7667,128.76,128.72,27.1903]
[1725613441471,22.2031,128.79,128.73,0.97526466]
[1725613441472,7.7659,128.77,128.73,0.97526466]
[1725613441753,7.7664,128.76,128.73,0.97526466]
[1725613443147,20.0,128.75,128.73,0.97526466]
[1725613444357,20.0,128.75,128.72,27.1903]
[1725613445153,20.0,128.75,128.73,52.768]
[1725613445339,20.0,128.76,128.73,52.768]
[1725613445847,27.7664,128.76,128.73,45.0]
[1725613446164,27.7664,128.76,128.72,27.1903]
[1725613446331,27.7664,128.76,128.73,45.0]
[1725613449739,27.7664,128.76,128.73,52.7681]
[1725613450753,20.0,128.76,128.74,7.7675]
[1725613450957,27.7655,128.78,128.74,7.7675]
[1725613451130,27.7655,128.78,128.75,45.0]
[1725613451327,6.6026,128.82,128.75,45.0]
[1725613451951,15.4406,128.83,128.75,45.0]
[1725613452144,15.4406,128.83,128.78,7.7646]
[1725613452145,23.2029,128.83,128.78,7.7646]
[1725613452341,23.2029,128.83,128.79,9.31712365]
[1725613452342,7.7623,128.83,128.79,9.31712365]
[1725613452541,7.7623,128.83,128.8,1.55251582]
[1725613454137,7.7617,128.84,128.8,31.55251582]
[1725613454466,7.7611,128.85,128.8,31.55251582]
[1725613454758,7.7611,128.85,128.81,45.0]
[1725613454951,7.7611,128.85,128.82,1.55227478]
[1725613455733,7.7611,128.85,128.81,52.7631]
[1725613456539,20.0,128.84,128.81,52.7631]
[1725613459448,19.3955,128.9,128.81,52.7631]
[1725613459449,34.9805,128.93,128.82,37.76763008]
[1725613459661,34.9805,128.93,128.83,45.0]
[1725613460345,7.7583,128.9,128.86,7.76]
[1725613460539,7.7585,128.89,128.85,27.1619]
[1725613461164,20.0,128.88,128.85,27.1619]
[1725613464259,20.0,128.88,128.82,37.76763008]
[1725613464260,7.7604,128.86,128.82,50.1447]
[1725613464672,7.7599,128.87,128.82,50.1447]
[1725613464867,20.0,128.86,128.82,50.1447]
[1725613465247,19.3936,128.91,128.84,19.4038]
[1725613465448,19.3936,128.91,128.85,45.0]
[1725613465650,20.0,128.9,128.85,45.0]
[1725613465854,7.7588,128.89,128.85,52.7608]
[1725613466058,20.0,128.88,128.85,52.7608]
[1725613466469,27.7592,128.88,128.85,52.7608]
[1725613466778,20.0,128.88,128.85,45.0]
[1725613466963,20.0,128.9,128.85,45.0]
[1725613468382,7.7594,128.88,128.85,45.0]
[1725613468554,20.0,128.87,128.85,45.0]
[1725613473363,27.7597,128.87,128.84,27.1652]
[1725613475283,27.7597,128.87,128.85,45.0]
[1725613477985,20.0,128.87,128.85,45.0]
[1725613478362,20.0,128.87,128.85,52.7609]
[1725613478784,7.7583,128.9,128.87,7.7595]
[1725613479085,20.0,128.89,128.87,7.7595]
[1725613480468,8.583545,128.92,128.88,7.7587]
[1725613480679,8.583545,128.92,128.89,52.7585]
[1725613480680,0.826645,128.92,128.89,52.7585]
[1725613481063,8.583345,128.92,128.89,52.7585]
[1725613481278,0.826645,128.92,128.89,45.0]
[1725613481576,0.826645,128.92,128.89,7.7584]
[1725613481767,8.583345,128.92,128.88,52.7589]
[1725613481975,20.0,128.91,128.88,52.7589]
[1725613489802,20.0,128.91,128.88,45.0]
[1725613490099,20.0,128.91,128.87,41.1621]
[1725613490100,7.7581,128.9,128.86,7.76]
[1725613490291,7.7581,128.9,128.85,19.4021]
[1725613490292,7.7581,128.9,128.87,7.7597]
[1725613491192,0.826645,128.92,128.88,7.7587]
[1725613491399,0.826645,128.92,128.88,52.7587]
[1725613491701,8.583545,128.92,128.88,52.7587]
[1725613491887,20.0,128.91,128.88,52.7587]
[1725613492580,20.0,128.91,128.89,7.7584]
[1725613492784,20.0,128.91,128.9,45.0]
[1725613494001,0.826645,128.92,128.9,52.7578]
[1725613494693,0.826645,128.92,128.9,45.0]
[1725613494900,0.826645,128.92,128.9,52.7576]
[1725613495276,0.826645,128.92,128.9,45.0]
[1725613496876,0.826645,128.92,128.9,52.7579]
[1725613501406,0.826645,128.92,128.91,7.7573]
[1725613501606,0.826645,128.92,128.91,52.7573]
[1725613503375,0.826645,128.92,128.91,53.65831098]
[1725613504301,0.826645,128.92,128.91,0.90101098]
[1725613504716,0.826645,128.92,128.91,8.65831098]
[1725613504910,0.826645,128.92,128.91,7.7573]
[1725613505808,0.826645,128.92,128.91,52.7573]
[1725613507911,0.826645,128.92,128.9,27.1513]
[1725613508207,0.826645,128.92,128.88,41.4101]
[1725613508416,0.826645,128.92,128.9,7.7575]
[1725613509114,0.826645,128.92,128.9,27.1523]
[1725613509415,0.826645,128.92,128.91,45.0]
[1725613510910,0.826645,128.92,128.9,19.3948]
[1725613511395,0.826645,128.92,128.81,16.5876]
[1725613511601,0.826645,128.92,128.82,5.69770337]
[1725613511809,0.826645,128.92,128.83,5.69770337]
[1725613512119,0.826645,128.92,128.85,7.7604]
[1725613512120,7.7587,128.89,128.85,7.7604]
[1725613512412,0.826645,128.92,128.87,50.0]
[1725613512645,0.826645,128.92,128.91,7.7573]
[1725613513495,0.826645,128.92,128.91,52.7573]
[1725613519221,0.826645,128.92,128.91,67.54793008]
[1725613519825,0.826645,128.92,128.91,117.54793008]
[1725613520619,0.826645,128.92,128.91,67.54793008]
[1725613523025,0.826645,128.92,128.91,117.54793008]
[1725613527941,0.826645,128.92,128.91,7.7573]
[1725613529339,0.826645,128.92,128.91,52.7573]
[1725613533537,0.826645,128.92,128.91,67.54793008]
[1725613535420,0.826645,128.92,128.91,117.54793008]
[1725613537945,15.499,129.0,128.91,117.54793008]
[1725613537946,15.499,129.0,128.98,7.7529]
[1725613538114,15.499,129.0,128.99,46.54602501]
[1725613538314,15.499,129.0,128.99,45.0]
[1725613538717,15.499,129.0,128.97,27.1371]
[1725613539244,15.499,129.0,128.93,19.3902]
[1725613539436,27.7528,128.99,128.95,7.7546]
[1725613543047,7.7532,128.98,128.95,7.7546]
[1725613545848,27.7527,128.99,128.95,7.7546]
[1725613547152,20.0,128.99,128.96,7.7539]
[1725613547450,20.0,128.99,128.97,45.0]
[1725613549137,23.2513,129.0,128.98,7.7526]
[1725613549138,15.499,129.0,128.98,7.7526]
[1725613549345,7.7508,129.02,128.99,45.0]
[1725613549650,20.0,129.01,128.99,45.0]
[1725613552950,27.7513,129.01,128.99,45.0]
[1725613553332,27.7513,129.01,128.98,45.0]
[1725613553844,7.7519,129.0,128.98,45.0]
[1725613557547,27.7516,129.01,128.98,45.0]
[1725613558463,7.7511,129.02,128.98,52.7527]
[1725613558670,16.4218,129.03,129.0,7.7518]
[1725613558968,7.7501,129.03,129.0,7.7518]
[1725613559147,7.7496,129.04,129.0,7.7518]
[1725613559534,7.7496,129.04,129.01,0.6621831]
[1725613560042,20.0,129.03,129.01,0.6621831]
[1725613560251,20.0,129.03,129.01,53.4133831]
[1725613560564,20.0,129.03,129.01,52.7512]
[1725613561346,20.0,129.03,129.01,45.0]
[1725613561761,27.7501,129.03,129.0,7.7516]
[1725613568374,0.826645,129.05,129.01,64.3772]
[1725613568551,0.826645,129.05,129.03,19.3752]
[1725613568756,0.826645,129.05,129.04,52.7495]
[1725613573962,0.826645,129.05,129.03,19.3752]
[1725613574464,0.826645,129.05,129.04,7.7495]
[1725613575363,0.826645,129.05,129.04,52.7495]
[1725613577893,0.826645,129.05,129.03,19.3752]
[1725613577894,0.826645,129.05,129.03,27.1251]
[1725613578588,0.826645,129.05,129.04,7.7495]
[1725613579080,0.826645,129.05,129.04,52.7495]
[1725613587673,0.826645,129.05,129.04,69.1917]
[1725613588877,0.826645,129.05,129.04,7.7495]
[1725613590692,0.826645,129.05,129.04,52.7495]
[1725613596001,0.826645,129.05,129.0,19.3785]
[1725613596002,17.394345,129.05,129.0,19.3785]
[1725613596199,20.0,129.04,129.0,19.3785]
[1725613596700,20.0,129.04,129.02,27.1265]
[1725613597082,20.0,129.04,129.02,19.3762]
[1725613597281,20.0,129.04,129.03,45.0]
[1725613598982,20.0,129.04,128.99,19.3801]
[1725613599284,7.7502,129.03,128.99,27.1324]
[1725613599485,7.7508,129.02,128.99,27.1324]
[1725613600706,7.7508,129.02,128.99,19.3801]
[1725613605313,7.7508,129.02,128.99,27.1324]
[1725613605495,7.7503,129.03,129.0,45.0]
[1725613606309,27.7496,129.04,129.01,7.7513]
[1725613606513,27.7496,129.04,129.0,52.7517]
[1725613607907,7.7501,129.03,129.0,52.7517]
[1725613610816,0.826645,129.05,129.02,7.7503]
[1725613611012,0.826645,129.05,129.03,64.3751]
[1725613612331,0.826645,129.05,129.02,7.7503]
[1725613612332,28.575645,129.05,129.02,7.7503]
[1725613612491,20.826645,129.05,129.0,19.3786]
[1725613612826,8.575645,129.05,129.01,52.7509]
[1725613615020,7.7497,129.04,129.01,45.0]
[1725613615316,27.7497,129.04,129.01,45.0]
[1725613615516,7.7497,129.04,129.01,45.0]
[1725613616154,8.575745,129.05,129.01,52.7511]
[1725613616304,20.0,129.04,129.01,52.7511]
[1725613617318,0.826645,129.05,129.03,19.375]
[1725613617632,0.826645,129.05,129.04,45.0]
[1725613618433,0.826645,129.05,129.04,52.7495]
[1725613624830,0.826645,129.05,129.04,7.7495]
[1725613625017,0.826645,129.05,129.02,7.7503]
[1725613625217,0.826645,129.05,129.03,7.7501]
[1725613625419,0.826645,129.05,129.04,7.7495]
[1725613626212,0.826645,129.05,129.03,7.7497]
[1725613626441,0.826645,129.05,129.04,45.0]
[1725613627122,0.826645,129.05,129.03,7.7497]
[1725613628729,0.826645,129.05,129.04,45.0]
[1725613629644,0.826645,129.05,129.04,52.7495]
[1725613631129,0.826645,129.05,129.04,58.43300536]
[1725613631335,0.826645,129.05,129.04,52.7495]
[1725613633821,0.826645,129.05,129.03,27.1239]
[1725613634017,0.826645,129.05,129.0,19.3783]
[1725613634433,15.853845,129.05,129.0,19.3783]
[1725613634730,7.7513,129.01,128.97,27.137]
[1725613634933,7.7521,129.0,128.96,7.7541]
[1725613635246,20.0,128.99,128.96,7.7541]
[1725613636524,20.0,129.02,128.96,7.7541]
[1725613636725,20.0,129.02,128.97,7.7532]
[1725613636920,20.0,129.02,128.96,19.3845]
[1725613637124,7.7509,129.02,128.96,19.3845]
[1725613637552,20.0,129.01,128.96,19.3845]
[1725613637927,20.0,129.01,128.98,7.7526]
[1725613638126,20.0,129.02,128.98,19.3824]
[1725613638326,23.602845,129.05,128.99,45.0]
[1725613638963,23.602845,129.05,128.98,50.68813479]
[1725613639264,23.602845,129.05,129.01,7.7512]
[1725613640242,20.0,129.04,129.01,7.7512]
[1725613641359,0.826645,129.05,129.04,7.7495]
[1725613641835,0.826645,129.05,129.04,52.7495]
[1725613645764,0.826645,129.05,129.04,7.7495]
[1725613646061,0.826645,129.05,129.03,7.7499]
[1725613646865,0.826645,129.05,129.04,7.7495]
[1725613647243,0.826645,129.05,129.03,7.7498]
[1725613652860,0.826645,129.05,129.04,7.7495]
[1725613654464,0.826645,129.05,129.04,52.7495]
[1725613657951,0.826645,129.05,129.03,27.1238]
[1725613658981,0.826645,129.05,129.04,7.7495]
[1725613662862,0.826645,129.05,129.04,52.7495]
[1725613666882,0.826645,129.05,129.04,7.7495]
[1725613670476,0.826645,129.05,129.03,19.374]
[1725613671579,0.826645,129.05,129.03,27.1236]
[1725613675885,0.826645,129.05,129.02,7.7503]
[1725613677782,8.575545,129.05,129.02,7.7503]
[1725613678084,0.826645,129.05,129.02,7.7503]
[1725613678286,0.826645,129.05,129.03,7.7499]
[1725613679287,0.826645,129.05,129.04,7.7495]
[1725613679467,0.826645,129.05,129.04,52.7495]
[1725613681780,0.826645,129.05,129.01,38.756]
[1725613681986,0.826645,129.05,129.02,45.0]
[1725613682168,7.7495,129.04,129.0,27.1297]
[1725613682373,7.7495,129.04,129.0,19.3783]
[1725613682793,7.7495,129.04,129.0,27.1298]
[1725613683265,28.575645,129.05,129.01,7.7511]
[1725613688399,7.7496,129.04,129.01,7.7511]
[1725613688589,7.7496,129.04,129.0,27.13]
[1725613688791,7.7502,129.03,129.0,19.3783]
[1725613689100,7.7502,129.03,128.99,16.32214509]
[1725613690908,20.826645,129.05,128.99,16.32214509]
[1725613690909,7.7508,129.02,128.99,16.32214509]
[1725613691214,7.7504,129.03,128.99,16.32214509]
[1725613692094,7.7509,129.02,128.99,16.32214509]
[1725613694108,7.7519,129.0,128.99,8.56984509]
[1725613694323,27.7519,129.0,128.99,8.56984509]
[1725613695321,20.0,129.0,128.99,8.56984509]
[1725613695489,7.7511,129.02,128.99,8.56984509]
[1725613695810,0.826645,129.05,128.99,16.32194509]
[1725613696015,7.7497,129.04,129.0,7.7516]
[1725613696185,20.0,129.03,129.0,7.7516]
[1725613698415,27.7502,129.03,128.99,7.7522]
[1725613698713,20.0,129.03,128.98,19.3814]
[1725613698902,20.826645,129.05,128.97,7.7535]
[1725613699108,7.7515,129.01,128.97,7.7535]
[1725613699289,20.0,129.0,128.97,7.7535]
[1725613699624,7.7497,129.04,129.0,7.7517]
[1725613699802,20.0,129.03,129.01,7.7511]
[1725613700115,20.0,129.03,129.0,7.7516]
[1725613707512,20.0,129.03,129.01,7.7511]
[1725613709122,0.826645,129.05,129.03,7.7501]
[1725613709310,0.826645,129.05,129.04,7.7495]
[1725613711832,0.826645,129.05,129.03,27.1238]
[1725613712325,0.826645,129.05,129.04,1.10590717]
[1725613712631,0.826645,129.05,129.03,28.2320036]
[1725613713504,0.826645,129.05,129.03,27.1238]
[1725613714431,0.826645,129.05,129.04,7.7495]
[1725613714619,0.826645,129.05,129.04,52.7495]
[1725613714807,0.826645,129.05,129.04,7.7495]
[1725613718934,0.826645,129.05,129.04,52.7495]
[1725613743742,0.826645,129.05,129.04,7.7495]
[1725613745731,0.826645,129.05,129.04,52.7495]
[1725613748824,0.826645,129.05,129.04,55.13869444]
[1725613750035,0.826645,129.05,129.04,52.7495]
[1725613750752,0.826645,129.05,129.04,61.3046791]
[1725613751051,0.826645,129.05,129.04,63.69352678]
[1725613751635,0.826645,129.05,129.04,55.13834768]
[1725613752237,0.826645,129.05,129.04,18.69221523]
[1725613752438,0.826645,129.05,129.04,10.13834768]
[1725613753626,0.826645,129.05,129.04,10.13831329]
[1725613754232,0.826645,129.05,129.04,55.13831329]
[1725613754970,0.826645,129.05,129.04,52.7495]
[1725613755246,0.826645,129.05,129.04,55.1386462]
[1725613756741,0.826645,129.05,129.04,7.7495]
[1725613756930,0.826645,129.05,129.0,19.3785]
[1725613757139,8.575845,129.05,129.02,7.7506]
[1725613757446,7.7495,129.04,129.0,27.1302]
[1725613757648,7.7501,129.03,129.0,27.1304]
[1725613758159,7.7508,129.02,128.97,19.3829]
[1725613758450,7.7508,129.02,128.98,7.7527]
[1725613759045,7.7508,129.02,128.99,7.7524]
[1725613763658,20.0,129.04,129.0,7.7518]
[1725613764345,20.0,129.04,128.99,19.3811]
[1725613764737,7.7504,129.03,128.99,27.1334]
[1725613765751,27.7498,129.04,129.0,7.7518]
[1725613771665,7.7509,129.02,128.99,27.1336]
[1725613771979,20.0,129.04,128.96,19.3843]
[1725613772276,6.5669,129.02,128.96,19.3843]
[1725613772491,7.7521,129.0,128.96,27.1383]
[1725613773779,6.5669,129.02,128.95,7.7547]
[1725613773780,25.9439,129.02,128.95,7.7547]
[1725613773963,7.7531,128.98,128.95,7.7548]
[1725613774170,7.7531,128.98,128.94,27.1441]
[1725613774368,7.7538,128.97,128.94,19.3888]
[1725613774689,7.7538,128.97,128.88,29.85830981]
[1725613774690,6.5896,128.97,128.91,19.3928]
[1725613774989,7.755,128.95,128.9,7.7579]
[1725613775271,20.0,128.94,128.9,7.7579]
[1725613776866,15.5572,128.93,128.86,19.3999]
[1725613777057,20.0,128.92,128.86,19.3999]
[1725613777256,13.9908,128.91,128.86,19.3999]
[1725613777472,20.0,128.9,128.86,19.3999]
[1725613777655,20.0,128.9,128.87,1.10767276]
[1725613778082,20.0,128.92,128.88,19.3975]
[1725613779374,20.0,128.92,128.89,7.7585]
[1725613779770,20.0,128.92,128.9,7.7578]
[1725613783362,20.0,128.92,128.89,7.7583]
[1725613784657,20.0,128.92,128.88,27.1564]
[1725613784864,20.0,128.92,128.86,7.7599]
[1725613785185,20.0,128.92,128.85,19.401]
[1725613785186,7.7574,128.91,128.87,7.7597]
[1725613785489,20.0,128.9,128.87,7.7597]
[1725613785881,20.0,128.9,128.85,19.401]
[1725613786072,7.7581,128.9,128.85,27.1617]
[1725613786270,20.0,128.89,128.85,27.1617]
[1725613786576,20.0,128.89,128.84,7.7615]
[1725613786577,27.7589,128.89,128.84,7.7615]
[1725613790403,20.0,128.89,128.85,7.7608]
[1725613791295,20.0,128.89,128.86,7.7601]
[1725613791488,7.758,128.9,128.85,7.7607]
[1725613791787,20.0,128.89,128.85,7.7607]
[1725613795289,27.7587,128.89,128.85,7.7607]
[1725613796402,27.7587,128.89,128.84,27.1648]
[1725613797006,30.1358,128.88,128.83,7.7616]
[1725613797185,20.0,128.87,128.83,7.7616]
[1725613797902,27.7601,128.87,128.82,19.4068]
[1725613799410,27.7601,128.87,128.83,7.7621]
[1725613800404,20.0,128.87,128.84,7.7614]
[1725613802589,20.0,128.87,128.85,7.7608]
[1725613802795,23.08833989,128.91,128.86,7.7603]
[1725613802984,27.758,128.9,128.86,7.7603]
[1725613804390,7.7588,128.89,128.85,27.1616]
[1725613804592,20.0,128.88,128.85,27.1616]
[1725613811617,20.0,128.88,128.86,7.7602]
[1725613811817,20.0,128.89,128.86,7.7602]
[1725613812015,27.7586,128.89,128.85,27.1616]
[1725613813985,7.7592,128.88,128.85,19.4009]
[1725613814909,27.7587,128.89,128.85,19.4009]
[1725613815221,27.7587,128.89,128.85,27.1616]
[1725613815388,20.0,128.89,128.85,27.1616]
[1725613815802,20.0,128.89,128.86,7.7602]
[1725613816392,20.0,128.89,128.87,27.1584]
[1725613816595,20.0,128.9,128.88,7.7588]
[1725613817003,20.0,128.9,128.85,19.4022]
[1725613817187,7.7592,128.88,128.85,19.4022]
[1725613817397,20.0,128.87,128.78,71.2709]
[1725613817591,6.0774,128.89,128.78,71.2709]
[1725613817592,20.0,128.88,128.78,71.2709]
[1725613817817,15.5907,128.87,128.78,79.82513587]
[1725613818000,15.5907,128.87,128.79,8.55473107]
[1725613818001,7.7635,128.81,128.79,8.55473107]
[1725613818330,7.7635,128.81,128.74,21.6987]
[1725613818331,20.0,128.8,128.76,27.1807]
[1725613818617,20.0,128.8,128.76,19.4145]
[1725613819400,27.7641,128.8,128.76,19.4145]
[1725613820002,27.7641,128.8,128.76,27.1807]
[1725613820206,20.0,128.8,128.75,7.7665]
[1725613821411,27.7641,128.8,128.75,7.7665]
[1725613822114,27.7641,128.8,128.76,7.7662]
[1725613822422,20.0,128.8,128.75,19.4169]
[1725613823033,20.0,128.8,128.76,7.7662]
[1725613824027,20.0,128.8,128.77,7.7655]
[1725613824224,20.0,128.8,128.77,19.4134]
[1725613824529,20.0,128.82,128.77,19.4134]